bitfinex/quotes_ETHUSD_20260119
["timestamp","ask_amount","ask_price","bid_price","bid_amount"]
[1768786012740,12.59032809,3214.5,3213.6,0.002]
[1768786013619,12.52322436,3214.3,3213.6,0.002]
[1768786013818,13.77865801,3214.3,3213.6,0.002]
[1768786014021,12.52322436,3214.1,3213.6,0.002]
[1768786015531,3.61219407,3214.2,3213.6,0.002]
[1768786015532,12.55433645,3214.0,3213.6,0.002]
[1768786015751,12.52322436,3214.0,3213.3,0.002]
[1768786016425,15.63469297,3214.0,3213.3,0.002]
[1768786016633,12.52322436,3213.8,3213.3,0.002]
[1768786017437,1.87459845,3213.9,3213.3,0.002]
[1768786018651,4.98608745,3213.9,3213.3,0.002]
[1768786018850,1.87459845,3213.9,3213.3,0.002]
[1768786019740,17.50931578,3213.9,3213.3,0.002]
[1768786019925,2.06518178,3213.8,3213.3,0.002]
[1768786020109,14.58840614,3213.8,3213.3,0.002]
[1768786020543,12.52322436,3213.7,3213.3,0.002]
[1768786021506,2.06518178,3213.8,3213.3,0.002]
[1768786021843,15.63462475,3214.0,3213.3,0.002]
[1768786022211,12.52322436,3214.0,3213.3,0.002]
[1768786022409,15.63461422,3214.0,3213.3,0.002]
[1768786022732,12.52322436,3213.9,3213.1,3.11221672]
[1768786022938,3.11138986,3214.0,3212.9,0.496]
[1768786022939,14.08668578,3213.8,3212.9,0.496]
[1768786023105,14.08668578,3213.8,3213.1,3.11224448]
[1768786023312,13.02422436,3214.1,3213.2,12.14892234]
[1768786023543,16.13552093,3214.1,3213.2,12.14892234]
[1768786024309,13.02422436,3214.1,3213.3,3.11206547]
[1768786024505,0.001,3214.2,3213.4,0.52711968]
[1768786024748,0.001,3214.2,3213.4,14.56605932]
[1768786024915,0.001,3214.2,3213.4,14.53493964]
[1768786025114,0.001,3214.9,3213.4,14.53493964]
[1768786025115,0.001,3214.9,3213.5,12.18004105]
[1768786025426,0.001,3214.9,3213.5,12.14892234]
[1768786025626,0.001,3214.9,3213.7,12.14892234]
[1768786025954,0.001,3214.9,3213.4,2.3860173]
[1768786025955,0.001,3214.9,3213.9,12.14892234]
[1768786026248,0.001,3214.9,3214.0,12.64492234]
[1768786026417,13.02422436,3215.6,3214.2,12.14892234]
[1768786026614,0.501,3215.6,3214.2,12.14892234]
[1768786027859,12.52322436,3215.4,3214.2,12.14892234]
[1768786028044,12.52322436,3215.2,3214.3,0.496]
[1768786028349,12.52322436,3215.2,3213.6,3.11168713]
[1768786028350,15.63374101,3214.9,3213.7,12.64492234]
[1768786028564,3.64248309,3215.1,3213.9,12.14892234]
[1768786028565,3.61135164,3215.1,3213.9,12.14892234]
[1768786028723,16.16568809,3215.1,3213.9,12.14892234]
[1768786028924,12.52322436,3215.0,3213.9,12.14892234]
[1768786029865,12.55433645,3214.9,3213.9,12.14892234]
[1768786030030,1.25543364,3214.8,3213.9,12.14892234]
[1768786030432,1.25543364,3214.8,3214.0,3.11138767]
[1768786030631,1.25543364,3214.8,3214.0,18.37169768]
[1768786030853,3.61136563,3215.1,3214.1,12.14892234]
[1768786031156,12.55433645,3215.0,3214.1,12.14892234]
[1768786031464,12.52322436,3215.0,3214.0,3.11138767]
[1768786031645,12.52322436,3215.0,3213.7,0.496]
[1768786031955,12.52322436,3214.8,3213.7,0.496]
[1768786032158,12.52322436,3214.6,3213.7,0.496]
[1768786032361,12.52322436,3214.4,3213.7,0.496]
[1768786032563,12.55433645,3214.3,3213.5,3.11181143]
[1768786032770,12.52322436,3214.3,3213.5,3.60781143]
[1768786032967,14.39776141,3214.3,3213.5,0.496]
[1768786033328,14.39776141,3214.3,3213.2,12.14892234]
[1768786033531,12.52322436,3214.1,3213.3,0.496]
[1768786033843,12.52322436,3214.1,3213.3,3.11206487]
[1768786034235,12.52322436,3214.1,3213.2,3.60813428]
[1768786034437,16.88694806,3214.0,3213.3,3.1120642]
[1768786034640,13.7755468,3214.0,3213.3,3.1120642]
[1768786035036,16.8869416,3214.0,3213.3,3.1120642]
[1768786035443,16.8869416,3214.0,3213.2,0.496]
[1768786035790,16.8869416,3214.0,3213.2,3.6081523]
[1768786036150,15.63461262,3214.0,3213.2,4.28019338]
[1768786036463,15.63461262,3214.0,3213.2,4.28019604]
[1768786036655,15.63461262,3214.0,3212.5,12.14892234]
[1768786036656,12.52322436,3213.9,3212.5,12.14892234]
[1768786036849,12.52322436,3213.7,3211.9,12.14892234]
[1768786037082,12.52322436,3213.7,3212.3,12.64492234]
[1768786037240,12.52322436,3213.7,3212.5,12.14892234]
[1768786037451,13.8256468,3213.6,3212.6,3.11270952]
[1768786038170,13.8256468,3213.6,3212.3,12.64492234]
[1768786038361,3.11138826,3214.0,3212.4,12.14892234]
[1768786038561,13.02422436,3213.9,3212.9,3.11245292]
[1768786038760,13.02422436,3213.9,3212.8,15.75743299]
[1768786039785,13.02422436,3213.9,3212.8,18.86998279]
[1768786039987,13.02422436,3213.9,3212.9,12.14892234]
[1768786040276,14.63778562,3213.9,3212.9,1.88699828]
[1768786040483,14.63778562,3213.9,3212.8,18.86998279]
[1768786040815,17.74927482,3213.9,3212.8,18.86998279]
[1768786040945,0.501,3213.9,3212.9,12.14892234]
[1768786041146,19.24663527,3214.2,3212.9,12.14892234]
[1768786041465,12.55433645,3214.1,3212.8,6.72106045]
[1768786041662,12.52322436,3214.1,3212.8,3.11251065]
[1768786041860,12.52322436,3213.9,3212.9,0.496]
[1768786042098,12.52322436,3213.9,3212.6,12.14892234]
[1768786042283,12.52322436,3213.9,3212.8,3.60852389]
[1768786042694,12.2375251,3213.7,3212.8,3.60852389]
[1768786043393,12.2375251,3213.7,3212.8,6.72107369]
[1768786043573,3.6125813,3213.8,3212.8,6.72107369]
[1768786043574,12.2375251,3214.0,3212.9,13.02124685]
[1768786043771,12.2375251,3214.0,3212.9,12.99012233]
[1768786044704,0.501,3214.2,3213.1,12.31801496]
[1768786044903,0.501,3214.2,3213.3,12.31801496]
[1768786046604,12.76963719,3214.6,3213.3,12.31801496]
[1768786046805,12.76963719,3214.6,3213.4,19.82335372]
[1768786046806,16.62540758,3214.5,3213.4,19.82335372]
[1768786046971,13.51448882,3214.5,3213.5,12.34913367]
[1768786047176,13.51448882,3214.5,3213.6,12.81401496]
[1768786047971,0.501,3214.6,3213.6,12.81401496]
[1768786048171,12.2375251,3214.8,3213.6,12.81401496]
[1768786048172,18.95975984,3214.8,3213.6,12.81401496]
[1768786048576,15.84913851,3214.8,3213.6,12.81401496]
[1768786048904,12.2375251,3214.7,3213.7,18.5413712]
[1768786049202,12.0885251,3214.7,3213.7,18.5413712]
[1768786049405,12.0885251,3214.7,3213.8,1.90373712]
[1768786050420,0.501,3214.8,3213.8,14.22175208]
[1768786050576,15.84914402,3214.8,3213.8,14.22175208]
[1768786050779,12.7385251,3214.8,3213.8,14.22175208]
[1768786050983,12.2375251,3215.2,3214.0,12.31801496]
[1768786051210,0.001,3215.3,3214.2,12.31801496]
[1768786051581,12.2385251,3215.3,3214.2,12.31801496]
[1768786052675,15.34869199,3215.3,3214.2,12.31801496]
[1768786052882,15.34869199,3215.3,3214.1,3.5653839]
[1768786052883,12.2375251,3215.0,3214.1,3.5653839]
[1768786053092,12.2375251,3214.8,3214.1,3.60721008]
[1768786053594,12.2375251,3214.8,3214.2,3.11116228]
[1768786054391,0.501,3215.0,3214.2,6.22235635]
[1768786054613,12.76963719,3215.0,3214.2,6.22235635]
[1768786054813,12.7385251,3215.0,3214.2,6.22235635]
[1768786055312,12.2385251,3215.3,3214.2,20.44400844]
[1768786056514,15.34869419,3215.3,3214.2,20.44400844]
[1768786056819,12.2375251,3215.2,3214.2,23.55520251]
[1768786057025,0.001,3215.3,3214.5,12.31801496]
[1768786057230,0.001,3215.3,3214.5,12.81401496]
[1768786057384,0.001,3215.3,3214.6,0.50404556]
[1768786058331,0.001,3215.3,3214.6,13.36546813]
[1768786059005,0.001,3215.3,3214.7,3.11071017]
[1768786059216,0.001,3215.3,3214.6,16.47619017]
[1768786059217,12.11515575,3215.3,3214.6,0.50404556]
[1768786059430,12.11415575,3215.1,3214.5,0.496]
[1768786059987,12.11415575,3215.1,3214.5,3.60688765]
[1768786060183,12.11415575,3215.1,3214.6,3.11079603]
[1768786060431,12.11415575,3215.1,3214.5,0.496]
[1768786060729,0.001,3215.3,3214.7,12.86142257]
[1768786060933,0.501,3215.9,3214.7,12.86142257]
[1768786061289,12.11415575,3216.0,3214.9,12.86142257]
[1768786061605,12.11415575,3216.0,3215.0,13.35742257]
[1768786061918,3.61031343,3216.2,3215.1,14.19716483]
[1768786061919,0.501,3216.2,3215.1,14.19716483]
[1768786062420,12.11415575,3216.6,3215.1,14.19716483]
[1768786062593,0.03111209,3216.5,3215.1,14.57181106]
[1768786062795,0.501,3216.8,3215.1,14.19716483]
[1768786062796,12.11415575,3216.7,3215.1,14.19716483]
[1768786062996,13.99738788,3216.7,3215.3,12.86142257]
[1768786063196,13.99738788,3216.7,3215.6,19.08110163]
[1768786063617,12.11415575,3216.5,3215.6,3.10983953]
[1768786063788,12.11415575,3216.5,3215.6,6.21967906]
[1768786064292,0.501,3216.7,3215.7,12.86142257]
[1768786064629,0.501,3216.7,3215.8,2.39963713]
[1768786064630,12.61515575,3216.7,3215.8,2.39963713]
[1768786064837,12.11415575,3216.6,3215.8,0.496]
[1768786065043,15.22275821,3216.9,3215.8,13.35742257]
[1768786065249,12.14526784,3216.8,3215.9,3.10954942]
[1768786065404,12.11415575,3216.6,3215.8,0.496]
[1768786065605,12.11415575,3216.6,3215.6,3.10980574]
[1768786065848,6.21755214,3216.7,3215.4,3.11001193]
[1768786065849,12.11415575,3216.4,3215.5,0.496]
[1768786066010,12.11415575,3216.2,3215.5,3.60593475]
[1768786066550,12.11415575,3216.0,3214.7,3.11069726]
[1768786066709,1.83317079,3216.5,3214.9,3.11042345]
[1768786066710,12.11415575,3215.8,3214.9,3.11042345]
[1768786066907,12.11415575,3215.6,3214.9,3.11042345]
[1768786067309,12.11415575,3215.6,3214.8,3.11061341]
[1768786067734,15.22401116,3215.6,3214.8,3.11061341]
[1768786067934,12.11415575,3215.5,3214.7,3.60667189]
[1768786068612,3.10985541,3215.6,3214.7,16.46810983]
[1768786068849,0.43744822,3215.5,3214.7,16.46810983]
[1768786069210,0.43744822,3215.5,3214.7,13.35742257]
[1768786069411,3.54742267,3215.5,3214.7,16.4681234]
[1768786070513,3.54741423,3215.5,3214.7,16.4681234]
[1768786072342,0.001,3215.2,3214.7,16.4681234]
[1768786073555,0.001,3215.2,3214.7,18.42601486]
[1768786073776,0.001,3215.2,3214.3,3.11104181]
[1768786073777,12.00572549,3215.1,3214.3,3.11104181]
[1768786074271,0.001,3215.2,3214.6,3.11072808]
[1768786074561,0.001,3215.2,3214.5,15.06298765]
[1768786074859,0.001,3215.2,3214.6,15.06292261]
[1768786075360,0.001,3215.2,3214.5,1.86699142]
[1768786075537,12.00672549,3215.2,3214.0,11.95212575]
[1768786075736,12.00672549,3215.2,3214.1,0.496]
[1768786076049,12.00572549,3215.0,3214.1,3.60721762]
[1768786076218,12.00572549,3215.0,3214.2,0.496]
[1768786077152,18.22675879,3214.9,3214.3,0.496]
[1768786077350,12.00572549,3214.8,3214.3,0.496]
[1768786078553,12.00572549,3214.8,3213.8,15.06369964]
[1768786078753,12.00572549,3214.8,3213.9,12.44812575]
[1768786078754,1.82267588,3214.7,3213.9,12.44812575]
[1768786079253,4.93340896,3214.7,3214.0,3.11138767]
[1768786080049,4.93340896,3214.7,3213.9,12.44812575]
[1768786080050,4.93340896,3214.7,3213.9,15.55957398]
[1768786080676,12.00572549,3214.6,3213.4,11.95212575]
[1768786080956,12.00572549,3214.6,3213.4,0.496]
[1768786081256,12.00572549,3214.4,3213.4,0.496]
[1768786082769,12.00572549,3214.4,3213.4,3.6079568]
[1768786082931,12.00572549,3214.4,3213.4,0.496]
[1768786083136,15.11701636,3214.1,3213.4,0.496]
[1768786083434,12.00572549,3214.0,3212.9,0.002]
[1768786085334,12.00572549,3213.8,3212.9,0.002]
[1768786085740,4.93388455,3214.3,3213.0,11.95212575]
[1768786085741,12.00572549,3214.2,3213.0,11.95212575]
[1768786086046,12.00572549,3214.2,3213.1,1.69141258]
[1768786086047,12.00572549,3214.1,3213.1,1.69141258]
[1768786086356,12.00572549,3214.1,3213.1,13.64353833]
[1768786087429,15.1170278,3214.1,3213.2,3.11216233]
[1768786087630,15.1170278,3214.1,3213.2,18.17645041]
[1768786088156,15.1170278,3214.1,3213.2,15.06428808]
[1768786088460,15.1170278,3214.1,3213.3,1.15811577]
[1768786088847,12.00572549,3214.1,3213.3,1.15811577]
[1768786089165,12.00572549,3214.4,3213.4,11.95212575]
[1768786089380,0.129,3215.2,3213.4,11.95212575]
[1768786089381,15.11653243,3214.6,3213.4,11.95212575]
[1768786089659,12.00572549,3214.6,3213.7,11.95212575]
[1768786089858,12.00572549,3214.9,3213.8,12.44812575]
[1768786090060,12.00572549,3214.7,3213.9,0.496]
[1768786090230,1.20057255,3214.8,3213.4,3.11196163]
[1768786090231,12.00572549,3214.5,3214.0,0.496]
[1768786090433,12.00572549,3214.3,3213.8,0.496]
[1768786090658,12.03683758,3214.2,3213.8,0.496]
[1768786090836,12.00572549,3214.2,3213.8,0.496]
[1768786091038,0.03111209,3214.1,3213.8,0.496]
[1768786091350,0.03111209,3214.1,3213.2,11.95212575]
[1768786091351,0.03111209,3214.1,3213.7,0.496]
[1768786091527,3.14242515,3214.1,3213.7,0.496]
[1768786092656,12.00572549,3214.0,3213.7,0.496]
[1768786092862,12.00572549,3214.0,3213.7,0.46618814]
[1768786093045,13.82856065,3213.9,3212.9,11.95412575]
[1768786093248,13.82856065,3213.9,3213.0,0.496]
[1768786093561,13.82856065,3213.9,3213.0,3.60832975]
[1768786093753,3.1115813,3213.8,3213.0,0.496]
[1768786094058,6.2231626,3213.8,3213.0,0.496]
[1768786094263,8.25944702,3213.8,3213.1,0.496]
[1768786094564,8.25944702,3213.8,3212.9,11.95412575]
[1768786094565,12.00572549,3213.7,3212.9,0.002]
[1768786094741,12.00572549,3213.7,3213.2,0.496]
[1768786095164,12.00572549,3213.7,3213.3,0.496]
[1768786095460,2.02340604,3213.6,3213.3,0.48750325]
[1768786095639,3.11196863,3213.4,3212.9,0.002]
[1768786095844,3.11196863,3213.4,3213.0,0.496]
[1768786097133,3.11170043,3213.7,3213.0,0.496]
[1768786097332,0.03111209,3213.7,3213.0,0.496]
[1768786097549,0.03111209,3213.7,3213.0,12.44812575]
[1768786097865,3.14284051,3213.7,3213.0,12.44812575]
[1768786098066,12.00572549,3213.6,3212.5,0.002]
[1768786099064,12.00572549,3213.6,3212.6,0.496]
[1768786099246,0.03111209,3213.5,3212.5,0.49600001]
[1768786099559,0.03111209,3213.5,3212.0,11.95412575]
[1768786099560,12.50672549,3213.4,3212.3,0.496]
[1768786099862,12.00572549,3213.2,3212.3,0.496]
[1768786100062,12.00572549,3213.2,3212.0,0.002]
[1768786100266,12.00572549,3213.0,3212.0,0.002]
[1768786100470,12.00572549,3212.8,3212.0,0.002]
[1768786101755,12.00572549,3212.6,3212.0,0.002]
[1768786101945,13.82882737,3212.5,3212.0,0.002]
[1768786103160,1.82310188,3212.5,3212.0,0.002]
[1768786103359,19.06926299,3212.7,3212.0,0.002]
[1768786103541,12.84396963,3212.6,3212.0,0.002]
[1768786104071,3.11284046,3212.5,3212.0,0.002]
[1768786104267,15.95681009,3212.5,3212.0,0.002]
[1768786105172,15.95681009,3212.5,3211.6,0.002]
[1768786105364,12.84396963,3212.3,3211.6,0.499]
[1768786105763,12.84396963,3212.3,3211.6,0.002]
[1768786106075,12.84396963,3212.1,3211.5,1e-08]
[1768786108080,3.11332503,3212.0,3211.5,1e-08]
[1768786108412,1.59568101,3212.4,3211.5,12.18676871]
[1768786108413,3.11303427,3212.3,3211.5,12.18676871]
[1768786108547,20.82532063,3212.3,3211.5,12.18676871]
[1768786109283,20.82532063,3212.3,3211.9,0.002]
[1768786109591,0.001,3212.2,3211.9,0.002]
[1768786110712,0.001,3212.2,3212.0,0.497]
[1768786111598,3.11229277,3213.1,3212.0,12.6837687]
[1768786111599,12.84396963,3213.1,3212.0,12.6837687]
[1768786111912,3.1125649,3212.8,3212.0,12.6837687]
[1768786112258,3.1125649,3212.8,3212.0,15.79699883]
[1768786112457,4.86790589,3213.3,3212.1,12.1867687]
[1768786112458,12.84396963,3213.2,3212.1,12.1867687]
[1768786112674,3.11206547,3213.3,3212.1,12.1867687]
[1768786112994,0.03111209,3213.2,3212.1,12.1867687]
[1768786113191,0.03111209,3213.2,3212.3,12.1867687]
[1768786113417,3.11206547,3213.3,3212.3,12.1867687]
[1768786113418,3.14317756,3213.3,3212.3,12.1867687]
[1768786113603,6.25527676,3213.3,3212.3,12.1867687]
[1768786113901,3.14317756,3213.3,3212.3,12.1867687]
[1768786114190,0.03111209,3213.3,3212.5,12.1867687]
[1768786114366,3.14319113,3213.3,3212.6,0.497]
[1768786114568,3.14321046,3213.3,3212.6,0.497]
[1768786114875,5.05311646,3213.3,3212.6,12.6837687]
[1768786115075,3.14321046,3213.3,3212.6,12.6837687]
[1768786115581,12.84396963,3213.2,3212.7,0.497]
[1768786115891,0.03111209,3213.1,3212.3,12.1867687]
[1768786116093,0.03111209,3213.1,3212.4,0.497]
[1768786116396,3.11245292,3212.9,3212.4,0.497]
[1768786116687,0.03111209,3212.8,3212.5,0.497]
[1768786116861,0.03111209,3212.9,3212.5,0.497]
[1768786117469,4.43101883,3213.0,3212.5,0.497]
[1768786117891,4.43101883,3213.0,3212.3,12.1867687]
[1768786117892,7.5434174,3213.0,3212.6,0.497]
[1768786118100,0.44310188,3212.9,3212.6,0.497]
[1768786118268,0.03111209,3212.8,3212.6,0.497]
[1768786118885,3.55558515,3212.9,3212.6,0.497]
[1768786119090,3.55558515,3212.9,3212.6,0.447]
[1768786119091,0.44310188,3212.9,3212.6,0.447]
[1768786119406,7.22398556,3213.7,3212.7,12.15361501]
[1768786119614,4.112262,3213.7,3212.7,12.15361501]
[1768786120371,4.112262,3213.7,3212.9,12.15361501]
[1768786120812,4.112262,3213.7,3212.0,12.15361501]
[1768786120813,12.49803834,3213.2,3212.0,12.15361501]
[1768786120972,7.25318521,3213.3,3212.1,0.497]
[1768786120973,12.49803834,3213.0,3212.1,0.497]
[1768786121172,12.49803834,3213.0,3212.0,12.15361501]
[1768786121173,0.001,3212.6,3212.2,0.497]
[1768786121373,0.001,3212.6,3212.0,12.15361501]
[1768786121583,0.001,3212.6,3212.1,0.497]
[1768786121813,0.001,3212.6,3211.9,0.002]
[1768786121814,0.03211209,3212.6,3211.9,0.002]
[1768786121977,12.53015043,3212.6,3212.0,0.497]
[1768786122316,3.11293736,3212.4,3212.0,0.497]
[1768786123374,3.11293736,3212.4,3211.9,0.002]
[1768786123576,3.11293736,3212.4,3212.0,0.497]
[1768786124502,1.28412713,3212.5,3212.0,0.497]
[1768786124794,0.03111209,3212.5,3212.0,12.65061501]
[1768786124999,0.001,3212.6,3212.0,12.65061501]
[1768786125197,3.1137473,3212.6,3212.0,12.65061501]
[1768786125923,3.1137473,3212.6,3211.9,3.11532778]
[1768786125924,6.2264946,3212.6,3212.1,0.497]
[1768786126075,6.56898142,3212.6,3212.1,0.497]
[1768786126275,6.53786933,3212.6,3212.1,0.497]
[1768786126671,3.42512203,3212.6,3212.2,0.497]
[1768786126996,6.53786933,3212.6,3212.2,0.447]
[1768786127172,1.90359077,3212.5,3212.2,0.447]
[1768786127973,0.31237473,3212.6,3212.2,0.447]
[1768786128174,0.001,3212.6,3212.2,12.60061501]
[1768786128488,3.14343323,3213.1,3212.3,12.15361501]
[1768786128820,6.22413094,3213.3,3212.4,12.15361501]
[1768786128993,0.03111209,3213.2,3212.4,12.15361501]
[1768786130283,12.52915043,3213.2,3212.5,0.497]
[1768786130489,14.68457302,3213.1,3212.5,0.497]
[1768786130696,0.03111209,3213.0,3212.5,0.497]
[1768786131007,3.11245292,3212.9,3212.5,0.497]
[1768786132011,3.14347429,3213.0,3212.5,0.497]
[1768786132215,1.78280473,3212.9,3212.5,0.497]
[1768786132615,3.14347429,3213.0,3212.5,12.94769727]
[1768786132790,0.001,3212.8,3212.5,12.94769727]
[1768786135024,18.66192786,3213.6,3212.6,12.45069727]
[1768786135195,7.22402596,3213.7,3212.7,12.45069727]
[1768786135399,7.22402596,3213.7,3212.7,0.497]
[1768786135400,12.46949005,3213.6,3212.7,0.497]
[1768786135601,12.94037796,3213.6,3212.5,0.497]
[1768786136327,12.94037796,3213.6,3212.4,12.45069727]
[1768786136501,12.94037796,3213.6,3212.5,0.497]
[1768786136703,12.43837796,3213.4,3212.5,0.497]
[1768786136893,12.43837796,3213.2,3212.5,0.497]
[1768786137089,3.11235605,3213.0,3212.5,0.497]
[1768786137325,3.11235605,3213.0,3212.4,12.45069727]
[1768786137326,0.03111209,3212.9,3212.4,12.94769727]
[1768786137533,3.11235605,3213.0,3212.4,12.94769727]
[1768786137713,0.03111209,3212.9,3212.4,12.94769727]
[1768786138521,3.11235605,3213.0,3212.4,12.94769727]
[1768786138726,8.0941263,3213.0,3212.4,12.94769727]
[1768786140622,8.0941263,3213.0,3212.4,12.45069727]
[1768786140934,4.98177025,3213.0,3212.4,12.94769727]
[1768786141631,3.11235605,3213.0,3212.4,12.94769727]
[1768786142615,12.43837796,3212.9,3212.3,3.11302275]
[1768786142807,12.43837796,3212.9,3212.3,0.497]
[1768786143015,12.43837796,3212.9,3212.3,12.94769727]
[1768786143701,3.11250796,3212.9,3212.3,12.94769727]
[1768786143929,3.14350784,3213.0,3212.4,12.45069727]
[1768786144122,3.11239575,3213.0,3212.4,12.45069727]
[1768786144317,3.52860922,3213.0,3212.4,12.45069727]
[1768786144708,12.43837796,3212.9,3212.3,12.94769727]
[1768786145021,3.52860922,3213.0,3212.3,12.94769727]
[1768786145219,6.67211706,3213.0,3212.3,12.94769727]
[1768786145415,15.96698718,3213.0,3212.3,12.94769727]
[1768786145615,15.96698718,3213.0,3212.6,0.002]
[1768786145616,1.90792701,3212.9,3212.6,0.002]
[1768786146194,12.43837796,3212.8,3212.6,0.002]
[1768786146792,8.13291771,3212.9,3212.6,0.002]
[1768786146991,13.95022949,3212.9,3212.4,0.497]
[1768786147191,26.38860745,3212.9,3212.4,0.497]
[1768786147394,2.68048209,3212.8,3212.3,12.94969727]
[1768786147596,15.11886005,3212.8,3212.3,0.499]
[1768786147829,15.11886005,3212.8,3212.3,0.002]
[1768786147830,6.22529336,3212.7,3212.3,0.002]
[1768786147993,18.25568974,3212.6,3212.1,0.497]
[1768786148839,18.25568974,3212.6,3212.0,12.45069727]
[1768786149024,2.44809831,3212.5,3212.1,0.497]
[1768786149913,5.56095687,3212.5,3212.1,0.497]
[1768786150232,3.11285856,3212.5,3212.1,12.94769727]
[1768786150797,12.43837796,3212.4,3211.5,0.002]
[1768786151004,5.81861432,3212.2,3211.5,12.48383536]
[1768786151200,1.82569923,3212.1,3211.5,12.45269727]
[1768786152216,3.11332503,3212.0,3211.5,12.45269727]
[1768786152621,8.40000997,3212.0,3211.5,0.002]
[1768786152813,3.11332503,3212.0,3211.5,12.45269727]
[1768786153107,17.80770453,3212.0,3211.5,0.002]
[1768786153723,17.80770453,3212.0,3211.5,12.45269727]
[1768786153927,18.25699228,3211.9,3211.5,0.002]
[1768786154340,3.11351889,3211.8,3211.5,0.002]
[1768786154539,6.22703778,3211.8,3211.5,0.002]
[1768786154744,7.65720314,3211.8,3211.4,12.45269727]
[1768786155119,4.54368425,3211.8,3211.4,12.45269727]
[1768786156858,1.43016536,3211.8,3211.4,12.45269727]
[1768786157015,3.11346759,3211.9,3211.4,12.45269727]
[1768786157516,3.11346759,3211.9,3211.7,0.002]
[1768786157711,3.11346759,3211.9,3211.4,12.45269727]
[1768786157915,2.25600154,3212.0,3211.4,12.45269727]
[1768786158117,3.11333499,3212.0,3211.4,12.45269727]
[1768786158345,3.14444708,3212.0,3211.4,12.45269727]
[1768786158910,6.25778207,3212.0,3211.4,12.45269727]
[1768786159730,12.43837796,3211.9,3211.4,12.45269727]
[1768786160309,3.11351889,3211.8,3211.4,0.002]
[1768786160644,3.11351889,3211.8,3211.4,12.45269727]
[1768786161021,12.43837796,3211.9,3211.4,12.45269727]
[1768786161022,15.55184487,3211.9,3211.4,12.45269727]
[1768786161222,3.11336937,3212.0,3211.4,12.45269727]
[1768786161436,3.14448146,3212.0,3211.4,12.45269727]
[1768786162318,3.11336937,3212.0,3211.4,12.45269727]
[1768786162536,3.14448146,3212.0,3211.4,12.45269727]
[1768786163215,6.25785083,3212.0,3211.4,12.45269727]
[1768786163627,3.14448146,3212.0,3211.4,12.45269727]
[1768786163941,6.22673874,3212.0,3211.4,12.45269727]
[1768786164347,18.50238654,3212.0,3211.4,12.45269727]
[1768786164513,18.47127445,3212.0,3211.4,12.45269727]
[1768786164916,15.35790508,3212.0,3211.4,12.45269727]
[1768786165528,3.11336937,3212.0,3211.4,12.45269727]
[1768786165730,3.61513962,3212.2,3211.4,12.45269727]
[1768786165731,0.03111209,3212.1,3211.4,12.45269727]
[1768786165932,3.14440883,3212.1,3211.5,12.90125711]
[1768786166125,3.14434696,3212.1,3211.5,12.90125711]
[1768786166346,3.6151762,3212.2,3211.5,14.55288185]
[1768786166818,12.2756478,3212.1,3211.3,0.002]
[1768786167023,12.24453571,3212.1,3211.2,2.25815398]
[1768786167224,12.24453571,3211.9,3211.2,2.25815398]
[1768786167421,12.24453571,3211.7,3211.2,2.25815398]
[1768786167646,0.03111209,3211.6,3211.2,2.25815398]
[1768786167844,12.24453571,3211.7,3211.2,2.25815398]
[1768786168360,12.24453571,3211.7,3211.1,0.497]
[1768786168931,12.24453571,3211.5,3211.0,0.499]
[1768786169658,12.24453571,3211.5,3211.0,13.40025711]
[1768786170162,3.11371279,3211.6,3211.4,0.002]
[1768786170450,3.11371279,3211.6,3211.0,13.40025711]
[1768786170653,12.24453571,3211.5,3211.0,13.40025711]
[1768786170823,3.1139067,3211.4,3211.0,13.40025711]
[1768786171152,3.1139067,3211.4,3211.0,13.35025711]
[1768786171349,15.35835036,3211.5,3211.0,13.35025711]
[1768786171521,3.11381465,3211.5,3211.0,9.23799511]
[1768786172533,5.08346791,3211.5,3211.0,9.23799511]
[1768786174126,3.1139067,3211.4,3211.0,9.23799511]
[1768786174540,5.08349927,3211.5,3211.0,9.23799511]
[1768786175972,12.24453571,3211.6,3211.0,9.23799511]
[1768786176160,16.58265405,3211.7,3211.1,12.90125711]
[1768786176360,15.35820048,3211.7,3211.1,12.90125711]
[1768786176560,15.35820048,3211.7,3210.4,0.002]
[1768786176561,12.24453571,3211.0,3210.4,0.002]
[1768786176759,12.24453571,3210.8,3210.4,0.002]
[1768786176933,12.24453571,3210.7,3210.0,12.90125711]
[1768786177338,12.24453571,3210.7,3209.7,2.9875385]
[1768786177674,7.10031236,3210.8,3209.1,12.90125711]
[1768786177675,12.24453571,3209.9,3209.1,12.90125711]
[1768786177968,12.24453571,3209.9,3209.2,12.54995729]
[1768786178138,3.11435156,3211.0,3209.2,12.54995729]
[1768786178139,11.91558754,3211.2,3209.2,15.6659844]
[1768786178341,11.91558754,3211.0,3209.3,12.54995729]
[1768786178536,11.91558754,3210.7,3209.3,12.54995729]
[1768786178747,11.91558754,3210.7,3209.5,12.54995729]
[1768786178953,11.91558754,3210.7,3209.7,12.54995729]
[1768786179242,11.91558754,3210.7,3209.9,12.54995729]
[1768786179771,11.91558754,3209.9,3208.8,16.16436933]
[1768786179943,11.91558754,3209.9,3209.0,15.6661292]
[1768786180143,11.91558754,3209.9,3209.0,12.54995729]
[1768786180144,11.91558754,3209.8,3209.0,12.54995729]
[1768786180349,11.91558754,3209.8,3209.0,15.66619284]
[1768786180550,11.91558754,3209.8,3209.0,12.54995729]
[1768786180780,5.82565879,3209.7,3209.0,12.54995729]
[1768786181557,11.91558754,3209.6,3208.7,15.66645901]
[1768786181742,11.91558754,3209.6,3208.7,15.66647182]
[1768786181943,11.91558754,3209.6,3208.7,12.54995729]
[1768786182167,3.11575011,3209.5,3209.3,0.002]
[1768786182371,1.86489301,3209.5,3209.3,0.002]
[1768786183379,0.502,3209.9,3209.3,0.002]
[1768786184380,12.41758754,3209.9,3209.3,0.002]
[1768786184672,12.41758754,3209.9,3209.1,0.498]
[1768786184673,11.91558754,3209.7,3209.1,0.498]
[1768786184973,11.91558754,3209.7,3209.0,0.002]
[1768786185176,13.45597299,3209.7,3209.0,0.002]
[1768786185377,11.91558754,3209.7,3209.0,12.55195729]
[1768786185680,11.91558754,3209.7,3209.2,3.11602735]
[1768786185981,11.91558754,3209.7,3209.0,12.55195729]
[1768786186480,11.91558754,3209.7,3209.0,15.66816896]
[1768786186860,11.91558754,3209.7,3209.0,18.78440454]
[1768786187057,11.91558754,3209.7,3209.0,15.66816896]
[1768786187274,11.91558754,3209.7,3209.0,3.11821167]
[1768786187275,11.91558754,3209.6,3209.0,3.11821167]